lending/lending_fUSD_20250121
["ID","MTS","AMOUNT","RATE_DAILY","PERIOD"]
[349792669,1737432638763,-500.0,0.00019451,2]
[349792671,1737432638772,-500.0,0.00019451,2]
[349792673,1737432638782,-500.0,0.00019451,2]
[349792674,1737432638792,-1411.35,0.00019451,2]
[349792675,1737432638802,-500.0,0.00019451,2]
[349792676,1737432638812,-500.0,0.00019451,2]
[349792677,1737432638822,-698.93,0.00019451,2]
[349792678,1737432638832,-500.0,0.00019451,2]
[349792679,1737432638841,-1062.05,0.00019451,2]
[349792680,1737432638850,-629.61,0.00019451,2]
[349792681,1737432638860,-500.0,0.00019451,2]
[349792682,1737432638870,-1089.28,0.00019451,2]
[349792683,1737432638880,-500.0,0.00019451,2]
[349792684,1737432638889,-500.0,0.00019451,2]
[349792685,1737432638898,-623.90107263,0.00019451,2]
[349792686,1737432638907,-500.0,0.00019451,2]
[349792687,1737432638918,-508.18,0.00019451,2]
[349792688,1737432638928,-508.11,0.00019451,2]
[349792689,1737432638937,-500.0,0.00019451,2]
[349792690,1737432638946,-500.0,0.00019451,2]
[349792691,1737432638956,-1648.26,0.00019451,2]
[349792692,1737432638965,-513.85759688,0.00019451,2]
[349792693,1737432638974,-500.0,0.00019451,2]
[349792694,1737432638984,-500.0,0.00019451,2]
[349792695,1737432638993,-740.04,0.00019451,2]
[349792696,1737432639003,-500.0,0.00019451,2]
[349792697,1737432639012,-993.89,0.00019451,2]
[349792698,1737432639021,-500.0,0.00019451,2]
[349792699,1737432639031,-759.61,0.00019451,2]
[349792700,1737432639040,-500.0,0.00019451,2]
[349792701,1737432639049,-972.7,0.00019451,2]
[349792702,1737432639059,-1457.72,0.00019451,2]
[349792703,1737432639068,-500.0,0.00019451,2]
[349792704,1737432639077,-669.01,0.00019451,2]
[349792705,1737432639087,-500.0,0.00019451,2]
[349792706,1737432639097,-607.03,0.00019451,2]
[349792707,1737432639107,-500.0,0.00019451,2]
[349792708,1737432639116,-500.0,0.00019451,2]
[349792709,1737432639125,-1081.63,0.00019451,2]
[349792710,1737432639135,-500.0,0.00019451,2]
[349792711,1737432639144,-1275.07,0.00019451,2]
[349792712,1737432639153,-1521.43,0.00019451,2]
[349792713,1737432639162,-887.73,0.00019451,2]
[349792714,1737432639173,-2034.25,0.00019451,2]
[349792715,1737432639183,-500.0,0.00019451,2]
[349792716,1737432639192,-500.0,0.00019451,2]
[349792717,1737432639202,-501.3,0.00019451,2]
[349792718,1737432639211,-573.48,0.00019451,2]
[349792719,1737432639220,-659.84,0.00019451,2]
[349792720,1737432639229,-500.0,0.00019451,2]
[349792721,1737432639238,-155.1339629,0.00019451,2]
[349792722,1737432639252,-344.8660371,0.00019451,2]
[349792723,1737432639262,-500.0,0.00019451,2]
[349792724,1737432639271,-1337.02,0.00019451,2]
[349792725,1737432639280,-500.0,0.00019451,2]
[349792726,1737432639289,-500.0,0.00019451,2]
[349792727,1737432639298,-729.86,0.00019451,2]
[349792728,1737432639307,-500.0,0.00019451,2]
[349792729,1737432639317,-500.0,0.00019451,2]
[349792730,1737432639326,-747.75,0.00019451,2]
[349792731,1737432639335,-500.0,0.00019451,2]
[349792732,1737432639344,-500.0,0.00019451,2]
[349792733,1737432639356,-348.64688344,0.00019451,2]
[349792734,1737432639367,-500.0,0.00019451,2]
[349792735,1737432639380,-500.0,0.00019451,2]
[349792736,1737432639390,-500.0,0.00019451,2]
[349792737,1737432639399,-500.0,0.00019451,2]
[349792738,1737432639409,-500.0,0.00019451,2]
[349792739,1737432639420,-500.0,0.00019451,2]
[349792740,1737432639429,-500.0,0.00019451,2]
[349792741,1737432639439,-500.0,0.00019451,2]
[349792742,1737432639449,-886.65,0.00019451,2]
[349792743,1737432639459,-500.0,0.00019451,2]
[349792744,1737432639468,-500.0,0.00019451,2]
[349792745,1737432639478,-529.55,0.00019451,2]
[349792746,1737432639487,-500.0,0.00019451,2]
[349792747,1737432639496,-500.0,0.00019451,2]
[349792748,1737432639505,-500.0,0.00019451,2]
[349792749,1737432639514,-500.0,0.00019451,2]
[349792750,1737432639523,-500.0,0.00019451,2]
[349792751,1737432639532,-407.27023133,0.00019451,2]
[349792752,1737432639542,-500.0,0.00019451,2]
[349792753,1737432639551,-500.0,0.00019451,2]
[349792754,1737432639561,-500.0,0.00019451,2]
[349792755,1737432639571,-500.0,0.00019451,2]
[349792756,1737432639583,-500.0,0.00019451,2]
[349792757,1737432639593,-190.983932,0.00019451,2]
[349792758,1737432639602,-1216.28,0.00019451,2]
[349792759,1737432639612,-500.0,0.00019451,2]
[349792760,1737432639621,-695.84,0.00019451,2]
[349792761,1737432639631,-558.73,0.00019451,2]
[349792762,1737432639640,-500.0,0.00019451,2]
[349792763,1737432639650,-750.64,0.00019451,2]
[349792764,1737432639659,-500.0,0.00019451,2]
[349792765,1737432639670,-500.0,0.00019451,2]
[349792766,1737432639680,-310.33894258,0.00019451,2]
[349792767,1737432639689,-500.0,0.00019451,2]
[349792768,1737432639699,-1200.1,0.00019451,2]
[349792769,1737432639709,-500.0,0.00019451,2]
[349792770,1737432639718,-500.0,0.00019451,2]
[349792771,1737432639727,-1307.11,0.00019451,2]
[349792772,1737432639736,-500.0,0.00019452,2]
[349792773,1737432639754,-500.0,0.00019452,2]
[349792774,1737432639766,-500.0,0.00019452,2]
[349792775,1737432639775,-500.0,0.00019452,2]
[349792776,1737432639785,-500.0,0.00019452,2]
[349792777,1737432639795,-540.16,0.00019452,2]
[349792778,1737432639806,-500.0,0.00019452,2]
[349792779,1737432639815,-500.0,0.00019452,2]
[349792780,1737432639825,-217.78171462,0.00019452,2]
[349792782,1737432639918,-282.21828538,0.00019452,2]
[349792783,1737432639927,-500.0,0.00019452,2]
[349792784,1737432639937,-198.95346612,0.00019452,2]
[349792785,1737432639948,-301.04653388,0.00019452,2]
[349792786,1737432639957,-500.0,0.00019452,2]
[349792787,1737432639967,-500.0,0.00019452,2]
[349792788,1737432639976,-500.0,0.00019452,2]
[349792789,1737432639985,-500.0,0.00019452,2]
[349792790,1737432639995,-500.0,0.00019452,2]
[349792791,1737432640004,-500.0,0.00019452,2]
[349792792,1737432640014,-500.0,0.00019452,2]
[349792793,1737432640023,-500.0,0.00019452,2]
[349792794,1737432640033,-500.0,0.00019452,2]
[349792795,1737432640043,-500.0,0.00019452,2]
[349792796,1737432640053,-500.0,0.00019452,2]
[349792797,1737432640062,-286.58249839,0.00019452,2]
[349792798,1737432640072,-500.0,0.00019452,2]
[349792799,1737432640083,-500.0,0.00019452,2]
[349792800,1737432640094,-300.0,0.00019452,2]
[349792801,1737432640104,-500.0,0.00019452,2]
[349792802,1737432640114,-500.0,0.00019452,2]
[349792803,1737432640125,-500.0,0.00019452,2]
[349792804,1737432640134,-500.0,0.00019452,2]
[349792805,1737432640143,-500.0,0.00019452,2]
[349792807,1737432640153,-500.0,0.00019452,2]
[349792809,1737432640163,-271.8613083,0.00019452,2]
[349792810,1737432640179,-500.0,0.00019452,2]
[349792811,1737432640189,-500.0,0.00019452,2]
[349792812,1737432640198,-500.0,0.00019452,2]
[349792813,1737432640208,-500.0,0.00019452,2]
[349792814,1737432640217,-500.0,0.00019452,2]
[349792815,1737432640227,-500.0,0.00019452,2]
[349792816,1737432640237,-500.0,0.00019452,2]
[349792817,1737432640247,-500.0,0.00019452,2]
[349792818,1737432640256,-500.0,0.00019452,2]
[349792819,1737432640266,-500.0,0.00019452,2]
[349792820,1737432640275,-392.18,0.00019452,2]
[349792821,1737432640284,-500.0,0.00019452,2]
[349792822,1737432640294,-1046.1,0.00019452,2]
[349792823,1737432640303,-500.0,0.00019452,2]
[349792824,1737432640313,-500.0,0.00019452,2]
[349792825,1737432640322,-500.0,0.00019452,2]
[349792826,1737432640332,-500.0,0.00019452,2]
[349792827,1737432640342,-500.0,0.00019452,2]
[349792828,1737432640352,-500.0,0.00019452,2]
[349792829,1737432640363,-500.0,0.00019452,2]
[349792830,1737432640372,-500.0,0.00019452,2]
[349792831,1737432640381,-500.0,0.00019452,2]
[349792832,1737432640390,-500.0,0.00019452,2]
[349792833,1737432640400,-500.0,0.00019452,2]
[349792834,1737432640410,-500.0,0.00019452,2]
[349792835,1737432640422,-568.32,0.00019452,2]
[349792836,1737432640431,-500.0,0.00019452,2]
[349792837,1737432640440,-500.0,0.00019452,2]
[349792838,1737432640450,-500.0,0.00019452,2]
[349792839,1737432640460,-500.0,0.00019452,2]
[349792840,1737432640469,-500.0,0.00019452,2]
[349792841,1737432640478,-500.0,0.00019452,2]
[349792842,1737432640488,-508.19322061,0.00019452,2]
[349792843,1737432640497,-560.18,0.00019452,2]
[349792844,1737432640506,-2287.02,0.00019452,2]
[349792845,1737432640515,-500.0,0.00019452,2]
[349792846,1737432640525,-500.0,0.00019452,2]
[349792847,1737432640534,-498.51598058,0.00019452,2]
[349792848,1737432640544,-988.46,0.00019452,2]
[349792849,1737432640553,-500.0,0.00019452,2]
[349792850,1737432640562,-500.0,0.00019452,2]
[349792851,1737432640571,-500.0,0.00019452,2]
[349792852,1737432640581,-500.0,0.00019452,2]
[349792853,1737432640590,-500.0,0.00019452,2]
[349792854,1737432640599,-500.0,0.00019452,2]
[349792855,1737432640609,-500.0,0.00019452,2]
[349792856,1737432640619,-596.34,0.00019452,2]
[349792857,1737432640628,-500.0,0.00019452,2]
[349792858,1737432640638,-500.0,0.00019452,2]
[349792859,1737432640648,-500.0,0.00019452,2]
[349792860,1737432640658,-500.0,0.00019452,2]
[349792861,1737432640668,-506.18725543,0.00019452,2]
[349792862,1737432640677,-500.0,0.00019452,2]
[349792863,1737432640687,-500.0,0.00019452,2]
[349792864,1737432640696,-500.0,0.00019452,2]
[349792865,1737432640705,-500.0,0.00019452,2]
[349792866,1737432640715,-500.0,0.00019452,2]
[349792867,1737432640724,-175.33,0.00019579,2]
[349792868,1737432640735,-1039.74,0.00019663,2]
[349792869,1737432640745,-500.0,0.00019724,2]
[349792870,1737432640755,-500.0,0.00019724,2]
[349792871,1737432640766,-500.0,0.00019724,2]
[349792872,1737432640775,-500.0,0.00019724,2]
[349792873,1737432640785,-675.95,0.00019724,2]
[349792874,1737432640794,-500.0,0.00019724,2]
[349792875,1737432640804,-500.0,0.00019724,2]
[349792876,1737432640813,-776.79,0.00019724,2]
[349792877,1737432640823,-701.33,0.00019724,2]
[349792878,1737432640832,-512.14,0.00019724,2]
[349792879,1737432640842,-500.0,0.00019724,2]
[349792880,1737432640851,-500.0,0.00019724,2]
[349792881,1737432640861,-500.0,0.00019724,2]
[349792882,1737432640871,-779.3,0.00019724,2]
[349792883,1737432640880,-894.95,0.00019724,2]
[349792884,1737432640890,-500.0,0.00019724,2]
[349792885,1737432640900,-777.11,0.00019724,2]
[349792886,1737432640910,-500.0,0.00019724,2]
[349792887,1737432640921,-500.0,0.00019724,2]
[349792888,1737432640929,-518.12778559,0.00019724,2]
[349792889,1737432640939,-500.0,0.00019724,2]
[349792890,1737432640948,-500.0,0.00019724,2]
[349792891,1737432640958,-500.0,0.00019724,2]
[349792892,1737432640967,-824.87,0.00019724,2]
[349792893,1737432640977,-637.74,0.00019724,2]
[349792894,1737432640986,-500.0,0.00019725,2]
[349792895,1737432640996,-500.0,0.00019725,2]
[349792896,1737432641006,-500.0,0.00019725,2]
[349792897,1737432641016,-500.0,0.00019725,2]
[349792898,1737432641025,-595.05,0.00019725,2]
[349792899,1737432641035,-500.0,0.00019725,2]
[349792900,1737432641045,-525.80564637,0.00019725,2]
[349792901,1737432641054,-500.0,0.00019725,2]
[349792902,1737432641063,-534.52185137,0.00019725,2]
[349792903,1737432641072,-500.0,0.00019725,2]
[349792904,1737432641082,-500.0,0.00019725,2]
[349792905,1737432641092,-500.0,0.00019725,2]
[349792906,1737432641101,-580.87,0.00019725,2]
[349792907,1737432641111,-500.0,0.00019725,2]
[349792908,1737432641120,-500.0,0.00019725,2]
[349792909,1737432641130,-500.0,0.00019725,2]
[349792910,1737432641140,-500.0,0.00019725,2]
[349792911,1737432641149,-500.0,0.00019725,2]
[349792912,1737432641158,-500.0,0.00019725,2]
[349792913,1737432641168,-500.0,0.00019725,2]
[349792914,1737432641177,-157.93438,0.00019725,2]
[349792915,1737432641187,-500.0,0.00019725,2]
[349792916,1737432641195,-500.0,0.00019725,2]
[349792917,1737432641204,-500.0,0.00019725,2]
[349792918,1737432641214,-500.0,0.00019725,2]
[349792919,1737432641223,-500.0,0.00019725,2]
[349792920,1737432641233,-156.259577,0.00019725,2]
[349792921,1737432641242,-500.0,0.00019725,2]
[349792922,1737432641251,-500.0,0.00019725,2]
[349792923,1737432641260,-500.0,0.00019725,2]
[349792924,1737432641270,-808.01,0.00019725,2]
[349792925,1737432641279,-500.0,0.00019725,2]
[349792926,1737432641288,-666.67,0.00019725,2]
[349792927,1737432641297,-500.0,0.00019725,2]
[349792928,1737432641306,-500.0,0.00019725,2]
[349792929,1737432641315,-500.0,0.00019725,2]
[349792930,1737432641325,-500.0,0.00019725,2]
[349792931,1737432641334,-500.0,0.00019725,2]
[349792932,1737432641345,-500.0,0.00019725,2]
[349792933,1737432641356,-500.0,0.00019725,2]
[349792934,1737432641366,-500.0,0.00019725,2]
[349792935,1737432641376,-500.0,0.00019725,2]
[349792936,1737432641386,-500.0,0.00019725,2]
[349792937,1737432641395,-500.0,0.00019725,2]
[349792938,1737432641405,-500.0,0.00019725,2]
[349792939,1737432641414,-500.0,0.00019725,2]
[349792940,1737432641425,-500.0,0.00019725,2]
[349792941,1737432641435,-500.0,0.00019725,2]
[349792942,1737432641444,-500.0,0.00019725,2]
[349792943,1737432641454,-293.98748532,0.00019725,2]
[349792944,1737432641463,-500.0,0.00019725,2]
[349792945,1737432641473,-1411.35,0.00019725,2]
[349792946,1737432641482,-500.0,0.00019725,2]
[349792947,1737432641492,-500.0,0.00019725,2]
[349792948,1737432641501,-698.93,0.00019725,2]
[349792949,1737432641510,-500.0,0.00019725,2]
[349792950,1737432641520,-1062.05,0.00019725,2]
[349792951,1737432641530,-629.61,0.00019725,2]
[349792952,1737432641539,-500.0,0.00019725,2]
[349792953,1737432641548,-1089.28,0.00019725,2]
[349792954,1737432641558,-500.0,0.00019725,2]
[349792955,1737432641567,-500.0,0.00019725,2]
[349792956,1737432641576,-500.0,0.00019725,2]
[349792957,1737432641586,-508.18,0.00019725,2]
[349792958,1737432641595,-508.11,0.00019725,2]
[349792959,1737432641605,-500.0,0.00019725,2]
[349792960,1737432641614,-500.0,0.00019725,2]
[349792961,1737432641624,-1648.26,0.00019725,2]
[349792962,1737432641638,-500.0,0.00019725,2]
[349792963,1737432641648,-500.0,0.00019725,2]
[349792964,1737432641658,-740.04,0.00019725,2]
[349792965,1737432641668,-500.0,0.00019725,2]
[349792966,1737432641678,-993.89,0.00019725,2]
[349792967,1737432641688,-500.0,0.00019725,2]
[349792968,1737432641698,-759.61,0.00019725,2]
[349792969,1737432641708,-972.7,0.00019725,2]
[349792970,1737432641717,-500.0,0.00019725,2]
[349792971,1737432641727,-1457.72,0.00019725,2]
[349792972,1737432641736,-500.0,0.00019725,2]
[349792973,1737432641747,-669.01,0.00019725,2]
[349792974,1737432641758,-500.0,0.00019725,2]
[349792975,1737432641768,-607.03,0.00019725,2]
[349792976,1737432641777,-500.0,0.00019725,2]
[349792977,1737432641786,-500.0,0.00019725,2]
[349792978,1737432641796,-1081.63,0.00019725,2]
[349792979,1737432641805,-500.0,0.00019725,2]
[349792980,1737432641814,-1275.07,0.00019725,2]
[349792981,1737432641823,-1521.43,0.00019725,2]
[349792982,1737432641833,-887.73,0.00019725,2]
[349792983,1737432641842,-2034.25,0.00019725,2]
[349792984,1737432641851,-500.0,0.00019725,2]
[349792985,1737432641861,-501.3,0.00019725,2]
[349792986,1737432641870,-573.48,0.00019725,2]
[349792987,1737432641880,-659.84,0.00019725,2]
[349792988,1737432641889,-500.0,0.00019725,2]
[349792989,1737432641898,-1337.02,0.00019725,2]
[349792990,1737432641907,-400.32773826,0.00019725,2]
[349792991,1737432641916,-729.86,0.00019725,2]
[349792992,1737432641927,-500.0,0.00019725,2]
[349792993,1737432641937,-500.0,0.00019725,2]
[349792994,1737432641947,-747.75,0.00019725,2]
[349792995,1737432641956,-500.0,0.00019725,2]
[349792996,1737432641965,-500.0,0.00019725,2]
[349792997,1737432641975,-500.0,0.00019725,2]
[349792998,1737432641984,-197.64440499,0.00019725,2]
[349792999,1737432641993,-500.0,0.00019725,2]
[349793000,1737432642003,-500.0,0.00019725,2]
[349793001,1737432642012,-500.0,0.00019725,2]
[349793002,1737432642022,-500.0,0.00019725,2]
[349793003,1737432642031,-248.23668911,0.00019725,2]
[349793004,1737432642040,-886.65,0.00019725,2]
[349793005,1737432642049,-500.0,0.00019725,2]
[349793006,1737432642059,-529.55,0.00019725,2]
[349793007,1737432642068,-500.0,0.00019725,2]
[349793008,1737432642077,-500.0,0.00019725,2]
[349793009,1737432642087,-500.0,0.00019725,2]
[349793010,1737432642096,-540.36,0.00019725,2]
[349793011,1737432642105,-500.0,0.00019725,2]
[349793012,1737432642114,-500.0,0.00019725,2]
[349793013,1737432642124,-500.0,0.00019725,2]
[349793014,1737432642133,-500.0,0.00019725,2]
[349793015,1737432642142,-1216.28,0.00019725,2]
[349793016,1737432642151,-695.84,0.00019725,2]
[349793017,1737432642161,-558.73,0.00019725,2]
[349793018,1737432642173,-500.0,0.00019725,2]
[349793019,1737432642183,-750.64,0.00019725,2]
[349793020,1737432642193,-500.0,0.00019725,2]
[349793021,1737432642202,-500.0,0.00019725,2]
[349793022,1737432642212,-1200.1,0.00019725,2]
[349793023,1737432642221,-500.0,0.00019725,2]
[349793024,1737432642230,-500.0,0.00019725,2]
[349793025,1737432642240,-1307.11,0.00019725,2]
[349793026,1737432642250,-500.0,0.00019726,2]
[349793027,1737432642260,-500.0,0.00019726,2]
[349793028,1737432642269,-500.0,0.00019726,2]
[349793029,1737432642480,-500.0,0.00019726,2]
[349793030,1737432642490,-500.0,0.00019726,2]
[349793031,1737432642499,-540.16,0.00019726,2]
[349793032,1737432642509,-500.0,0.00019726,2]
[349793033,1737432642519,-500.0,0.00019726,2]
[349793034,1737432642528,-500.0,0.00019726,2]
[349793035,1737432642537,-500.0,0.00019726,2]
[349793036,1737432642547,-500.0,0.00019726,2]
[349793037,1737432642557,-500.0,0.00019726,2]
[349793038,1737432642567,-500.0,0.00019726,2]
[349793039,1737432642578,-500.0,0.00019726,2]
[349793040,1737432642587,-500.0,0.00019726,2]
[349793041,1737432642598,-500.0,0.00019726,2]
[349793042,1737432642609,-500.0,0.00019726,2]
[349793043,1737432642619,-500.0,0.00019726,2]
[349793044,1737432642629,-500.0,0.00019726,2]
[349793045,1737432642638,-500.0,0.00019726,2]
[349793046,1737432642648,-500.0,0.00019726,2]
[349793047,1737432642657,-500.0,0.00019726,2]
[349793048,1737432642667,-521.60075912,0.00019726,2]
[349793049,1737432642681,-500.0,0.00019726,2]
[349793050,1737432642690,-302.43825849,0.00019726,2]
[349793051,1737432642699,-500.0,0.00019726,2]
[349793052,1737432642709,-500.0,0.00019726,2]
[349793053,1737432642718,-514.19057378,0.00019726,2]
[349793054,1737432642728,-500.0,0.00019726,2]
[349793055,1737432642737,-513.43624744,0.00019726,2]
[349793056,1737432642751,-500.0,0.00019726,2]
[349793057,1737432642762,-560.99808379,0.00019726,2]
[349793058,1737432642771,-500.0,0.00019726,2]
[349793059,1737432642781,-500.0,0.00019726,2]
[349793060,1737432642790,-508.00519619,0.00019726,2]
[349793061,1737432642800,-564.2799668,0.00019726,2]
[349793062,1737432642810,-500.0,0.00019726,2]
[349793063,1737432642820,-503.47558965,0.00019726,2]
[349793064,1737432642832,-500.0,0.00019726,2]
[349793065,1737432642841,-500.0,0.00019726,2]
[349793066,1737432642851,-392.18,0.00019726,2]
[349793067,1737432642861,-500.0,0.00019726,2]
[349793068,1737432642871,-1046.1,0.00019726,2]
[349793069,1737432642881,-274.17,0.00019726,2]
[349793071,1737432642891,-500.0,0.00019726,2]
[349793072,1737432642901,-500.0,0.00019726,2]
[349793073,1737432642910,-505.44927326,0.00019726,2]
[349793074,1737432642920,-500.0,0.00019726,2]
[349793075,1737432642931,-500.0,0.00019726,2]
[349793076,1737432642941,-500.0,0.00019726,2]
[349793077,1737432642951,-500.0,0.00019726,2]
[349793078,1737432642960,-500.0,0.00019726,2]
[349793079,1737432642970,-500.0,0.00019726,2]
[349793080,1737432642979,-500.0,0.00019726,2]
[349793081,1737432642989,-500.0,0.00019726,2]
[349793082,1737432642999,-568.32,0.00019726,2]
[349793083,1737432643008,-500.0,0.00019726,2]
[349793084,1737432643018,-500.0,0.00019726,2]
[349793085,1737432643027,-500.0,0.00019726,2]
[349793087,1737432643037,-500.0,0.00019726,2]
[349793088,1737432643047,-500.0,0.00019726,2]
[349793090,1737432643056,-500.0,0.00019726,2]
[349793092,1737432643066,-560.18,0.00019726,2]
[349793093,1737432643075,-2287.02,0.00019726,2]
[349793095,1737432643085,-500.0,0.00019726,2]
[349793096,1737432643094,-500.0,0.00019726,2]
[349793098,1737432643104,-988.46,0.00019726,2]
[349793099,1737432643113,-500.0,0.00019726,2]
[349793100,1737432643122,-500.0,0.00019726,2]
[349793101,1737432643131,-500.0,0.00019726,2]
[349793102,1737432643140,-500.0,0.00019726,2]
[349793103,1737432643150,-500.0,0.00019726,2]
[349793104,1737432643159,-500.0,0.00019726,2]
[349793105,1737432643168,-500.0,0.00019726,2]
[349793106,1737432643179,-596.34,0.00019726,2]
[349793107,1737432643188,-500.0,0.00019726,2]
[349793108,1737432643198,-500.0,0.00019726,2]
[349793109,1737432643208,-500.0,0.00019726,2]
[349793110,1737432643217,-500.0,0.00019726,2]
[349793111,1737432643226,-500.0,0.00019726,2]
[349793112,1737432643236,-500.0,0.00019726,2]
[349793113,1737432643245,-500.0,0.00019726,2]
[349793114,1737432643255,-500.0,0.00019726,2]
[349793115,1737432643264,-526.64962796,0.00019784,2]
[349793116,1737432643273,-162.67637772,0.00019989,2]
[349793117,1737432643283,-500.0,0.00019998,2]
[349793118,1737432643292,-500.0,0.00019998,2]
[349793119,1737432643301,-500.0,0.00019998,2]
[349793120,1737432643311,-500.0,0.00019998,2]
[349793121,1737432643320,-675.95,0.00019998,2]
[349793122,1737432643329,-500.0,0.00019998,2]
[349793123,1737432643338,-500.0,0.00019998,2]
[349793124,1737432643347,-776.79,0.00019998,2]
[349793125,1737432643358,-701.33,0.00019998,2]
[349793126,1737432643369,-512.14,0.00019998,2]
[349793127,1737432643379,-500.0,0.00019998,2]
[349793128,1737432643389,-500.0,0.00019998,2]
[349793129,1737432643398,-500.0,0.00019998,2]
[349793130,1737432643408,-779.3,0.00019998,2]
[349793131,1737432643418,-894.95,0.00019998,2]
[349793132,1737432643431,-500.0,0.00019998,2]
[349793133,1737432643440,-777.11,0.00019998,2]
[349793134,1737432643450,-500.0,0.00019998,2]
[349793135,1737432643460,-500.0,0.00019998,2]
[349793136,1737432643469,-500.0,0.00019998,2]
[349793137,1737432643479,-446.47129831,0.00019998,2]
[349793138,1737432643489,-226.21450376,0.00019998,2]
[349793139,1737432643498,-824.87,0.00019998,2]
[349793140,1737432643507,-637.74,0.00019998,2]
[349793141,1737432643517,-500.0,0.00019999,2]
[349793142,1737432643527,-500.0,0.00019999,2]
[349793143,1737432643536,-500.0,0.00019999,2]
[349793144,1737432643545,-500.0,0.00019999,2]
[349793145,1737432643557,-595.05,0.00019999,2]
[349793147,1737432643566,-500.0,0.00019999,2]
[349793149,1737432643575,-500.0,0.00019999,2]
[349793151,1737432643584,-500.0,0.00019999,2]
[349793153,1737432643594,-500.0,0.00019999,2]
[349793155,1737432643604,-331.91494655,0.00019999,2]
[349793157,1737432643613,-580.87,0.00019999,2]
[349793159,1737432643624,-500.0,0.00019999,2]
[349793161,1737432643633,-500.0,0.00019999,2]
[349793163,1737432643644,-500.0,0.00019999,2]
[349793164,1737432643654,-500.0,0.00019999,2]
[349793166,1737432643664,-500.0,0.00019999,2]
[349793168,1737432643676,-500.0,0.00019999,2]
[349793170,1737432643686,-500.0,0.00019999,2]
[349793171,1737432643695,-500.0,0.00019999,2]
[349793172,1737432643705,-500.0,0.00019999,2]
[349793173,1737432643714,-500.0,0.00019999,2]
[349793174,1737432643724,-500.0,0.00019999,2]
[349793176,1737432643734,-500.0,0.00019999,2]
[349793178,1737432643744,-156.259577,0.00019999,2]
[349793179,1737432643755,-500.0,0.00019999,2]
[349793180,1737432643766,-500.0,0.00019999,2]
[349793181,1737432643775,-500.0,0.00019999,2]
[349793182,1737432643784,-808.01,0.00019999,2]
[349793183,1737432643794,-500.0,0.00019999,2]
[349793184,1737432643804,-666.67,0.00019999,2]
[349793185,1737432643814,-500.0,0.00019999,2]
[349793186,1737432643823,-500.0,0.00019999,2]
[349793187,1737432643834,-500.0,0.00019999,2]
[349793188,1737432643844,-500.0,0.00019999,2]
[349793189,1737432643853,-500.0,0.00019999,2]
[349793190,1737432643862,-500.0,0.00019999,2]
[349793191,1737432643872,-500.0,0.00019999,2]
[349793192,1737432643881,-500.0,0.00019999,2]
[349793193,1737432643891,-500.0,0.00019999,2]